[Event "OGD Prinsenstad-toernooi - A groep"]
[Site "Delft"]
[Date "2013.03.31"]
[Round "4.3"]
[White "Hovhanisian, Mher"]
[Black "De Wit, Michel"]
[Result "1/2-1/2"]
[ECO "E46"]
[WhiteElo "2494"]
[BlackElo "2260"]
[PlyCount "27"]
[EventDate "2013.03.29"]
[EventType "swiss"]
[EventRounds "6"]
[EventCountry "NED"]
[Source "DSC"]
[SourceDate "2013.02.04"]
[TimeControl "6000+10"]

1. d4 {[%emt 0:00:00]} Nf6 {[%emt 0:01:53]} 2. c4 {[%emt 0:00:07]} e6 {
[%emt 0:00:20]} 3. Nc3 {[%emt 0:00:52]} Bb4 {[%emt 0:01:01]} 4. e3 {
[%emt 0:00:16]} O-O {[%emt 0:00:25]} 5. Nge2 {[%emt 0:00:04]} Ne4 {
[%emt 0:01:39]} 6. Qc2 {[%emt 0:00:45]} Nxc3 {[%emt 0:04:00]} 7. Nxc3 {
[%emt 0:00:05]} b6 {[%emt 0:00:47]} 8. a3 {[%emt 0:00:15]} Bxc3+ {
[%emt 0:00:11]} 9. Qxc3 {[%emt 0:00:04]} Bb7 {[%emt 0:00:17]} 10. b3 {
[%emt 0:00:28]} Qf6 {[%emt 0:03:06]} 11. Bb2 {[%emt 0:00:31]} d6 {
[%emt 0:00:20]} 12. Qc2 {[%emt 0:11:01]} Nd7 {[%emt 0:03:19]} 13. O-O-O {
[%emt 0:00:37]} Qh6 {[%emt 0:02:47]} 14. Qd2 {[%emt 0:07:33]} 1/2-1/2

[Event "OGD Prinsenstad-toernooi - A groep"]
[Site "Delft"]
[Date "2013.03.31"]
[Round "4.4"]
[White "Kohlweyer, Bernd"]
[Black "Van den Doel, Erik"]
[Result "0-1"]
[ECO "E91"]
[WhiteElo "2460"]
[BlackElo "2552"]
[PlyCount "50"]
[EventDate "2013.03.29"]
[EventType "swiss"]
[EventRounds "6"]
[EventCountry "NED"]
[Source "DSC"]
[SourceDate "2013.02.04"]
[TimeControl "6000+10"]

1. Nf3 Nf6 2. c4 g6 3. Nc3 Bg7 4. e4 d6 5. d4 O-O 6. Be2 Bg4 7. Be3 Nfd7 8. Rc1
c5 9. d5 Na6 10. O-O Nc7 11. h3 Bxf3 12. Bxf3 a6 13. a4 Re8 14. Qd2 e6 15. Be2
exd5 16. exd5 Rb8 17. Rfe1 Qe7 18. Bf1 Qf8 19. Kh1 f5 20. Rb1 Bf6 21. Bh6 Qf7
22. Rxe8+ Nxe8 23. a5 b6 24. axb6 Rxb6 25. Be3 f4 0-1

[Event "OGD Prinsenstad-toernooi - A groep"]
[Site "Delft"]
[Date "2013.03.31"]
[Round "4.5"]
[White "Slingerland, Fred"]
[Black "Ducarmon, Quinten"]
[Result "1-0"]
[ECO "B47"]
[WhiteElo "2336"]
[BlackElo "2416"]
[PlyCount "95"]
[EventDate "2013.03.29"]
[EventType "swiss"]
[EventRounds "6"]
[EventCountry "NED"]
[Source "DSC"]
[SourceDate "2013.02.04"]
[TimeControl "6000+10"]

1. e4 {[%emt 0:00:00]} c5 {[%emt 0:00:00]} 2. Nf3 {[%emt 0:00:00]} e6 {
[%emt 0:00:02]} 3. d4 {[%emt 0:00:10]} cxd4 {[%emt 0:00:05]} 4. Nxd4 {
[%emt 0:00:04]} Nc6 {[%emt 0:00:27]} 5. Nc3 {[%emt 0:00:59]} Qc7 {
[%emt 0:00:14]} 6. Be2 {[%emt 0:00:07]} a6 {[%emt 0:00:30]} 7. O-O {
[%emt 0:00:08]} Nf6 {[%emt 0:00:06]} 8. Be3 {[%emt 0:00:06]} Bb4 {
[%emt 0:01:09]} 9. Nxc6 {[%emt 0:00:15]} bxc6 {[%emt 0:00:56]} 10. Qd4 {
[%emt 0:00:11]} c5 {[%emt 0:02:57]} 11. Qc4 {[%emt 0:00:05]} Bb7 {
[%emt 0:04:32]} 12. a3 {[%emt 0:00:23]} d5 {[%emt 0:01:45]} 13. exd5 {
[%emt 0:00:25]} exd5 {[%emt 0:00:09]} 14. Qf4 {[%emt 0:00:06]} Qxf4 {
[%emt 0:01:49]} 15. Bxf4 {[%emt 0:00:04]} Bxc3 {[%emt 0:00:36]} 16. bxc3 {
[%emt 0:00:05]} O-O {[%emt 0:04:13]} 17. Rab1 {[%emt 0:00:37]} Bc6 {
[%emt 0:02:53]} 18. c4 {[%emt 0:04:47]} Ba4 {[%emt 0:07:37]} 19. Rb2 {
[%emt 0:02:27]} Rfe8 {[%emt 0:01:12]} 20. Bf3 {[%emt 0:08:24]} Rad8 {
[%emt 0:00:11]} 21. cxd5 {[%emt 0:02:41]} Nxd5 {[%emt 0:00:17]} 22. Bg5 {
[%emt 0:00:44]} f6 {[%emt 0:00:43]} 23. c4 {[%emt 0:07:49]} Nc3 {[%emt 0:01:20]
} 24. Be3 {[%emt 0:00:17]} Nd1 {[%emt 0:01:42]} 25. Rb6 {[%emt 0:18:08]} Nxe3 {
[%emt 0:00:57]} 26. fxe3 {[%emt 0:00:03]} Rxe3 {[%emt 0:02:41]} 27. Bd5+ {
[%emt 0:02:16]} Kh8 {[%emt 0:00:11]} 28. Rf3 {[%emt 0:07:41]} Re1+ {
[%emt 0:00:34]} 29. Rf1 {[%emt 0:01:33]} Re2 {[%emt 0:01:26]} 30. Rxa6 {
[%emt 0:01:01]} Bc2 {[%emt 0:00:20]} 31. Rc6 {[%emt 0:01:35]} Be4 {
[%emt 0:01:53]} 32. Bxe4 {[%emt 0:00:36]} Rxe4 {[%emt 0:00:05]} 33. Rxc5 {
[%emt 0:00:14]} h6 {[%emt 0:00:17]} 34. Rd5 {[%emt 0:08:37]} Rb8 {
[%emt 0:00:51]} 35. Rc1 {[%emt 0:17:16]} Rb2 {[%emt 0:01:12]} 36. Rd3 {
[%emt 0:00:31]} Ree2 {[%emt 0:00:52]} 37. Rg3 {[%emt 0:00:04]} Rec2 {
[%emt 0:06:10]} 38. Rxc2 {[%emt 0:01:09]} Rxc2 {[%emt 0:00:01]} 39. a4 {
[%emt 0:00:13]} Rxc4 {[%emt 0:00:06]} 40. Ra3 {[%emt 0:00:09]} Rc6 {
[%emt 0:00:26]} 41. a5 {[%emt 0:01:33]} Ra6 {[%emt 0:00:01]} 42. Kf2 {
[%emt 0:00:07]} f5 {[%emt 0:00:37]} 43. Ke3 {[%emt 0:00:03]} g5 {[%emt 0:00:59]
} 44. Kd4 {[%emt 0:00:03]} f4 {[%emt 0:01:13]} 45. Kc5 {[%emt 0:00:06]} g4 {
[%emt 0:01:30]} 46. Kb5 {[%emt 0:00:04]} Ra8 {[%emt 0:00:35]} 47. a6 {
[%emt 0:00:20]} Kg7 {[%emt 0:02:23]} 48. Ra4 {[%emt 0:00:10]} 1-0

[Event "OGD Prinsenstad-toernooi - A groep"]
[Site "Delft"]
[Date "2013.03.31"]
[Round "4.6"]
[White "Von Meijenfeldt, Bart"]
[Black "L'Ami-Motoc, Alina"]
[Result "1-0"]
[ECO "A05"]
[WhiteElo "2195"]
[BlackElo "2381"]
[PlyCount "133"]
[EventDate "2013.03.29"]
[EventType "swiss"]
[EventRounds "6"]
[EventCountry "NED"]
[Source "DSC"]
[SourceDate "2013.02.04"]
[TimeControl "6000+10"]

1. Nf3 {[%emt 0:13:00]} Nf6 {[%emt 0:00:15]} 2. g3 {[%emt 0:00:13]} g6 {
[%emt 0:00:05]} 3. Bg2 {[%emt 0:00:04]} Bg7 {[%emt 0:00:04]} 4. O-O {
[%emt 0:00:04]} O-O {[%emt 0:00:03]} 5. d4 {[%emt 0:01:04]} d6 {[%emt 0:00:06]}
6. Nc3 {[%emt 0:01:45]} Nbd7 {[%emt 0:04:16]} 7. e4 {[%emt 0:00:19]} e5 {
[%emt 0:01:53]} 8. Re1 {[%emt 0:04:04]} c6 {[%emt 0:01:44]} 9. b3 {
[%emt 0:01:07]} Re8 {[%emt 0:04:01]} 10. Ba3 {[%emt 0:00:23]} exd4 {
[%emt 0:06:05]} 11. Nxd4 {[%emt 0:02:10]} Qa5 {[%emt 0:02:24]} 12. Bb2 {
[%emt 0:00:20]} Nc5 {[%emt 0:00:29]} 13. Qd2 {[%emt 0:16:35]} Qb6 {
[%emt 0:00:55]} 14. a4 {[%emt 0:12:24]} Bd7 {[%emt 0:03:34]} 15. h3 {
[%emt 0:06:47]} Rad8 {[%emt 0:00:14]} 16. Kh2 {[%emt 0:00:07]} Bc8 {
[%emt 0:01:47]} 17. Rad1 {[%emt 0:01:18]} Nh5 {[%emt 0:05:34]} 18. Ba1 {
[%emt 0:02:57]} Qc7 {[%emt 0:05:45]} 19. f4 {[%emt 0:04:49]} a6 {[%emt 0:08:02]
} 20. Qf2 {[%emt 0:01:05]} Qb6 {[%emt 0:02:19]} 21. Qf3 {[%emt 0:05:28]} f5 {
[%emt 0:04:19]} 22. Nxf5 {[%emt 0:04:42]} gxf5 {[%emt 0:03:11]} 23. Qxh5 {
[%emt 0:01:58]} Rf8 {[%emt 0:07:47]} 24. exf5 {[%emt 0:05:50]} Bxf5 {
[%emt 0:00:46]} 25. Re7 {[%emt 0:02:13]} Ne6 {[%emt 0:01:52]} 26. Ne4 {
[%emt 0:02:53]} Bxa1 {[%emt 0:05:31]} 27. Rxa1 {[%emt 0:00:01]} Qd4 {
[%emt 0:00:39]} 28. Re1 {[%emt 0:01:05]} d5 {[%emt 0:06:58]} 29. c3 {
[%emt 0:00:53]} Qh8 {[%emt 0:00:37]} 30. Nf2 {[%emt 0:01:55]} Bg6 {
[%emt 0:03:07]} 31. Qh4 {[%emt 0:03:40]} Ng7 {[%emt 0:00:42]} 32. Ng4 {
[%emt 0:00:33]} Nf5 {[%emt 0:00:12]} 33. Nh6+ {[%emt 0:00:03]} Nxh6 {
[%emt 0:00:05]} 34. Qxh6 {[%emt 0:00:03]} Qxc3 {[%emt 0:03:26]} 35. R1e5 {
[%emt 0:00:11]} Rf7 {[%emt 0:00:30]} 36. Rxf7 {[%emt 0:00:03]} Kxf7 {
[%emt 0:00:07]} 37. Qg5 {[%emt 0:00:14]} Re8 {[%emt 0:01:48]} 38. h4 {
[%emt 0:01:09]} Qc2 {[%emt 0:03:05]} 39. Rxe8 {[%emt 0:02:20]} Kxe8 {
[%emt 0:00:02]} 40. Qe5+ {[%emt 0:00:06]} Kd7 {[%emt 0:01:02]} 41. Qg7+ {
[%emt 0:00:39]} Kc8 {[%emt 0:01:12]} 42. Qh8+ {[%emt 0:00:11]} Kc7 {
[%emt 0:00:16]} 43. Qe5+ {[%emt 0:00:05]} Kb6 {[%emt 0:00:29]} 44. Qd4+ {
[%emt 0:00:05]} Ka5 {[%emt 0:01:04]} 45. b4+ {[%emt 0:00:20]} Kxa4 {
[%emt 0:00:02]} 46. Kg1 {[%emt 0:00:14]} Qd3 {[%emt 0:01:56]} 47. Qb6 {
[%emt 0:00:10]} Qb1+ {[%emt 0:00:16]} 48. Kh2 {[%emt 0:00:06]} Qxb4 {
[%emt 0:00:20]} 49. Qf2 {[%emt 0:00:01]} Qb1 {[%emt 0:00:42]} 50. g4 {
[%emt 0:00:13]} Qc2 {[%emt 0:01:03]} 51. Qd4+ {[%emt 0:00:03]} Qc4 {
[%emt 0:00:12]} 52. Qa1+ {[%emt 0:00:09]} Kb4 {[%emt 0:00:19]} 53. f5 {
[%emt 0:00:15]} Qf4+ {[%emt 0:00:41]} 54. Kh3 {[%emt 0:00:21]} Be8 {
[%emt 0:00:24]} 55. Qe1+ {[%emt 0:00:01]} Kb3 {[%emt 0:00:22]} 56. Qxe8 {
[%emt 0:00:04]} d4 {[%emt 0:00:05]} 57. Qe6+ {[%emt 0:00:08]} Kc3 {
[%emt 0:00:14]} 58. f6 {[%emt 0:00:20]} d3 {[%emt 0:00:02]} 59. Qf5 {
[%emt 0:00:14]} Qe3+ {[%emt 0:00:15]} 60. Qf3 {[%emt 0:00:01]} Qc5 {
[%emt 0:02:14]} 61. f7 {[%emt 0:00:01]} Qf8 {[%emt 0:00:01]} 62. Qf6+ {
[%emt 0:00:07]} Kc2 {[%emt 0:00:17]} 63. Bf3 {[%emt 0:00:03]} c5 {
[%emt 0:00:38]} 64. Qe6 {[%emt 0:00:06]} d2 {[%emt 0:00:43]} 65. Qe8 {
[%emt 0:00:10]} Qd6 {[%emt 0:00:32]} 66. f8=Q {[%emt 0:00:05]} Qd3 {
[%emt 0:00:27]} 67. Qf5 1-0

[Event "OGD Prinsenstad-toernooi - A groep"]
[Site "Delft"]
[Date "2013.03.31"]
[Round "4.7"]
[White "Ootes, Lars"]
[Black "Padurariu, Smaranda"]
[Result "1-0"]
[ECO "B81"]
[WhiteElo "2350"]
[BlackElo "2201"]
[PlyCount "77"]
[EventDate "2013.03.29"]
[EventType "swiss"]
[EventRounds "6"]
[EventCountry "NED"]
[Source "DSC"]
[SourceDate "2013.02.04"]
[TimeControl "6000+10"]

1. e4 {[%emt 0:00:00]} c5 {[%emt 0:00:00]} 2. Nf3 {[%emt 0:00:01]} e6 {
[%emt 0:00:12]} 3. d4 {[%emt 0:00:29]} cxd4 {[%emt 0:00:08]} 4. Nxd4 {
[%emt 0:00:08]} Nf6 {[%emt 0:00:07]} 5. Nc3 {[%emt 0:00:17]} d6 {[%emt 0:00:39]
} 6. g4 {[%emt 0:01:09]} h6 {[%emt 0:00:24]} 7. h4 {[%emt 0:02:34]} Nc6 {
[%emt 0:02:17]} 8. Rg1 {[%emt 0:00:19]} d5 {[%emt 0:00:13]} 9. Bb5 {
[%emt 0:01:30]} Bd7 {[%emt 0:02:01]} 10. exd5 {[%emt 0:01:45]} Nxd5 {
[%emt 0:03:19]} 11. Nxd5 {[%emt 0:00:46]} exd5 {[%emt 0:00:06]} 12. Be3 {
[%emt 0:01:05]} Be7 {[%emt 0:00:20]} 13. Qd2 {[%emt 0:02:33]} Qa5 {
[%emt 0:21:33]} 14. Qxa5 {[%emt 0:10:19]} Nxa5 {[%emt 0:00:08]} 15. O-O-O {
[%emt 0:03:21]} O-O-O {[%emt 0:18:46]} 16. Bxd7+ {[%emt 0:02:00]} Rxd7 {
[%emt 0:00:23]} 17. Nf5 {[%emt 0:01:14]} Nc6 {[%emt 0:04:36]} 18. Nxe7+ {
[%emt 0:01:44]} Rxe7 {[%emt 0:00:23]} 19. Rxd5 {[%emt 0:01:09]} a6 {
[%emt 0:01:56]} 20. Rgd1 {[%emt 0:03:20]} Re4 {[%emt 0:02:58]} 21. Rd7 {
[%emt 0:04:44]} Ne5 {[%emt 0:02:16]} 22. R7d5 {[%emt 0:05:48]} Nc6 {
[%emt 0:00:35]} 23. g5 {[%emt 0:03:12]} hxg5 {[%emt 0:02:28]} 24. hxg5 {
[%emt 0:00:22]} g6 {[%emt 0:00:07]} 25. b3 {[%emt 0:02:49]} Rd8 {[%emt 0:02:32]
} 26. c4 {[%emt 0:02:51]} Ree8 {[%emt 0:10:53]} 27. Kb2 {[%emt 0:02:12]} Rxd5 {
[%emt 0:00:36]} 28. Rxd5 {[%emt 0:03:28]} Rd8 {[%emt 0:02:08]} 29. Rxd8+ {
[%emt 0:05:30]} Kxd8 {[%emt 0:00:18]} 30. Kc3 {[%emt 0:00:30]} Kd7 {
[%emt 0:01:30]} 31. b4 {[%emt 0:00:32]} Kd6 {[%emt 0:03:36]} 32. a4 {
[%emt 0:02:46]} Kc7 {[%emt 0:01:52]} 33. b5 {[%emt 0:10:20]} Ne7 {
[%emt 0:01:26]} 34. Kd4 {[%emt 0:05:38]} Kd7 {[%emt 0:06:20]} 35. Kc5 {
[%emt 0:01:45]} Nc8 {[%emt 0:00:17]} 36. a5 {[%emt 0:02:13]} Kc7 {
[%emt 0:03:15]} 37. Bf4+ {[%emt 0:00:32]} Kd7 {[%emt 0:00:05]} 38. Bg3 {
[%emt 0:01:27]} Ne7 {[%emt 0:01:34]} 39. Kb6 {[%emt 0:01:48]} 1-0

[Event "OGD Prinsenstad-toernooi - A groep"]
[Site "Delft"]
[Date "2013.03.31"]
[Round "4.8"]
[White "Vereggen, Lars"]
[Black "Hoeksema, Erik"]
[Result "1/2-1/2"]
[ECO "E12"]
[WhiteElo "2138"]
[BlackElo "2347"]
[PlyCount "69"]
[EventDate "2013.03.29"]
[EventType "swiss"]
[EventRounds "6"]
[EventCountry "NED"]
[Source "DSC"]
[SourceDate "2013.02.04"]
[TimeControl "6000+10"]

1. d4 Nf6 2. c4 e6 3. Nf3 b6 4. a3 Ba6 5. Qc2 c5 6. dxc5 bxc5 7. Bf4 Be7 8. e3
O-O 9. Bd3 Bb7 10. Nbd2 a5 11. O-O d6 12. Rad1 Nbd7 13. h3 Qb6 14. e4 e5 15.
Bg5 h6 16. Bxf6 Nxf6 17. Nb1 a4 18. Nc3 Bc6 19. Nd2 Ne8 20. Nd5 Bxd5 21. cxd5
Nc7 22. Nc4 Qb8 23. g3 Nb5 24. f4 Nd4 25. Qg2 Ra7 26. fxe5 dxe5 27. h4 Rb7 28.
Rf2 Qc7 29. d6 Bxd6 30. Ne3 c4 31. Bxc4 Bc5 32. Bd5 Rb6 33. Nc4 Rb3 34. Kh1 Ne6
35. Rf3 1/2-1/2

[Event "OGD Prinsenstad-toernooi - A groep"]
[Site "Delft"]
[Date "2013.03.31"]
[Round "4.9"]
[White "Freeke, Matthieu"]
[Black "Oranje, Richard"]
[Result "1-0"]
[ECO "A80"]
[WhiteElo "2320"]
[BlackElo "2058"]
[PlyCount "73"]
[EventDate "2013.03.29"]
[EventType "swiss"]
[EventRounds "6"]
[EventCountry "NED"]
[Source "DSC"]
[SourceDate "2013.02.04"]
[TimeControl "6000+10"]

1. d4 {[%emt 0:00:24]} f5 {[%emt 0:00:14]} 2. Nc3 {[%emt 0:00:12]} d5 {
[%emt 0:00:13]} 3. Bf4 {[%emt 0:00:12]} c6 {[%emt 0:01:31]} 4. e3 {
[%emt 0:00:10]} Nf6 {[%emt 0:00:11]} 5. Bd3 {[%emt 0:00:16]} e6 {[%emt 0:00:56]
} 6. Nf3 {[%emt 0:00:09]} Be7 {[%emt 0:05:12]} 7. h3 {[%emt 0:02:05]} b5 {
[%emt 0:00:47]} 8. O-O {[%emt 0:01:14]} Nbd7 {[%emt 0:02:27]} 9. Ne2 {
[%emt 0:04:10]} a6 {[%emt 0:00:46]} 10. b3 {[%emt 0:01:07]} O-O {[%emt 0:02:31]
} 11. c4 {[%emt 0:04:13]} Ne4 {[%emt 0:02:14]} 12. Qc2 {[%emt 0:03:12]} Bb7 {
[%emt 0:01:04]} 13. c5 {[%emt 0:02:53]} a5 {[%emt 0:01:12]} 14. Ne5 {
[%emt 0:00:25]} Nxe5 {[%emt 0:04:21]} 15. Bxe5 {[%emt 0:00:08]} b4 {
[%emt 0:05:43]} 16. a3 {[%emt 0:03:18]} Qc8 {[%emt 0:03:45]} 17. f3 {
[%emt 0:06:59]} Ng5 {[%emt 0:01:13]} 18. axb4 {[%emt 0:04:42]} axb4 {
[%emt 0:00:29]} 19. Qd2 {[%emt 0:00:28]} Nf7 {[%emt 0:06:53]} 20. Bg3 {
[%emt 0:00:08]} e5 {[%emt 0:00:20]} 21. Rxa8 {[%emt 0:00:41]} Bxa8 {
[%emt 0:00:26]} 22. Qxb4 {[%emt 0:00:47]} e4 {[%emt 0:01:30]} 23. Bc2 {
[%emt 0:02:22]} Bb7 {[%emt 0:00:51]} 24. fxe4 {[%emt 0:03:59]} fxe4 {
[%emt 0:00:43]} 25. Nf4 {[%emt 0:03:14]} Ba6 {[%emt 0:00:49]} 26. Rf2 {
[%emt 0:00:21]} Nh6 {[%emt 0:02:56]} 27. Bd1 {[%emt 0:03:04]} Bb5 {
[%emt 0:04:15]} 28. Nxd5 {[%emt 0:03:01]} cxd5 {[%emt 0:04:47]} 29. Qxb5 {
[%emt 0:01:57]} Bg5 {[%emt 0:08:48]} 30. Rxf8+ {[%emt 0:00:28]} Qxf8 {
[%emt 0:00:11]} 31. c6 {[%emt 0:03:21]} Bxe3+ {[%emt 0:00:52]} 32. Kh2 {
[%emt 0:00:09]} Nf5 {[%emt 0:03:46]} 33. Qxd5+ {[%emt 0:00:58]} Kh8 {
[%emt 0:00:09]} 34. Qc5 {[%emt 0:25:04]} Ne7 {[%emt 0:18:27]} 35. c7 {
[%emt 0:01:13]} h6 {[%emt 0:04:03]} 36. Qxe7 {[%emt 0:00:43]} Qf1 {
[%emt 0:00:06]} 37. c8=Q+ {[%emt 0:00:24]} 1-0

[Event "OGD Prinsenstad-toernooi - A groep"]
[Site "Delft"]
[Date "2013.03.31"]
[Round "5.1"]
[White "L'Ami, Erwin"]
[Black "Smeets, Jan"]
[Result "1-0"]
[ECO "D10"]
[WhiteElo "2615"]
[BlackElo "2627"]
[PlyCount "67"]
[EventDate "2013.03.29"]
[EventType "swiss"]
[EventRounds "6"]
[EventCountry "NED"]
[Source "DSC"]
[SourceDate "2013.02.04"]
[TimeControl "6000+10"]

1. d4 {[%emt 0:00:00]} d5 {[%emt 0:10:35]} 2. c4 {[%emt 0:00:02]} c6 {
[%emt 0:00:04]} 3. e3 {[%emt 0:00:12]} Nf6 {[%emt 0:00:08]} 4. Nc3 {
[%emt 0:00:09]} a6 {[%emt 0:00:53]} 5. Nf3 {[%emt 0:00:32]} Bf5 {[%emt 0:00:21]
} 6. Bd3 {[%emt 0:00:45]} Bxd3 {[%emt 0:00:27]} 7. Qxd3 {[%emt 0:00:07]} e6 {
[%emt 0:00:51]} 8. O-O {[%emt 0:00:29]} Nbd7 {[%emt 0:00:52]} 9. e4 {
[%emt 0:01:18]} dxe4 {[%emt 0:00:06]} 10. Nxe4 {[%emt 0:00:06]} Be7 {
[%emt 0:00:28]} 11. Bf4 {[%emt 0:01:47]} Nxe4 {[%emt 0:01:19]} 12. Qxe4 {
[%emt 0:00:22]} O-O {[%emt 0:05:21]} 13. Rfd1 {[%emt 0:00:21]} a5 {
[%emt 0:13:02]} 14. Rd3 {[%emt 0:04:16]} Qb6 {[%emt 0:07:05]} 15. Qe2 {
[%emt 0:06:11]} a4 {[%emt 0:12:01]} 16. Rad1 {[%emt 0:02:42]} Rfe8 {
[%emt 0:04:47]} 17. Qc2 {[%emt 0:06:31]} Qa6 {[%emt 0:01:49]} 18. Ne5 {
[%emt 0:03:22]} Rad8 {[%emt 0:03:27]} 19. h4 {[%emt 0:07:57]} h5 {
[%emt 0:07:26]} 20. Qe2 {[%emt 0:10:06]} Nxe5 {[%emt 0:03:14]} 21. Bxe5 {
[%emt 0:00:10]} Bd6 {[%emt 0:10:28]} 22. b3 {[%emt 0:06:18]} axb3 {
[%emt 0:03:25]} 23. axb3 {[%emt 0:00:24]} Qa5 {[%emt 0:00:42]} 24. Qxh5 {
[%emt 0:03:50]} f6 {[%emt 0:05:33]} 25. c5 {[%emt 0:00:39]} Bf8 {[%emt 0:00:22]
} 26. Bxf6 {[%emt 0:10:47]} gxf6 {[%emt 0:00:07]} 27. Rg3+ {[%emt 0:00:34]} Bg7
{[%emt 0:00:06]} 28. Qg6 {[%emt 0:00:10]} Re7 {[%emt 0:06:31]} 29. h5 {
[%emt 0:00:54]} Rxd4 {[%emt 0:00:43]} 30. Rxd4 {[%emt 0:00:10]} Qa1+ {
[%emt 0:00:03]} 31. Kh2 {[%emt 0:00:21]} Qxd4 {[%emt 0:00:04]} 32. h6 {
[%emt 0:00:13]} Qxf2 {[%emt 0:00:46]} 33. hxg7 {[%emt 0:01:03]} Qf4 {
[%emt 0:01:56]} 34. Qh7+ {[%emt 0:00:08]} 1-0

[Event "OGD Prinsenstad-toernooi - A groep"]
[Site "Delft"]
[Date "2013.03.31"]
[Round "5.3"]
[White "De Wit, Michel"]
[Black "Andersson, Ulf"]
[Result "1/2-1/2"]
[ECO "C07"]
[WhiteElo "2260"]
[BlackElo "2562"]
[PlyCount "42"]
[EventDate "2013.03.29"]
[EventType "swiss"]
[EventRounds "6"]
[EventCountry "NED"]
[Source "DSC"]
[SourceDate "2013.02.04"]
[TimeControl "6000+10"]

1. e4 {[%emt 0:00:09]} e6 {[%emt 0:02:03]} 2. d4 {[%emt 0:00:06]} d5 {
[%emt 0:00:14]} 3. Nd2 {[%emt 0:00:11]} c5 {[%emt 0:02:46]} 4. exd5 {
[%emt 0:01:12]} Qxd5 {[%emt 0:00:25]} 5. Ngf3 {[%emt 0:00:09]} cxd4 {
[%emt 0:00:13]} 6. Bc4 {[%emt 0:00:18]} Qd6 {[%emt 0:00:07]} 7. O-O {
[%emt 0:00:39]} Nf6 {[%emt 0:00:23]} 8. Nb3 {[%emt 0:00:16]} Nc6 {
[%emt 0:00:14]} 9. Nbxd4 {[%emt 0:00:26]} Nxd4 {[%emt 0:00:10]} 10. Nxd4 {
[%emt 0:00:54]} Bd7 {[%emt 0:00:29]} 11. c3 {[%emt 0:01:38]} Qc7 {
[%emt 0:00:54]} 12. Qe2 {[%emt 0:01:08]} Bc5 {[%emt 0:07:03]} 13. Be3 {
[%emt 0:04:26]} O-O {[%emt 0:00:48]} 14. Rfd1 {[%emt 0:01:44]} Rac8 {
[%emt 0:04:00]} 15. Bb3 {[%emt 0:02:32]} Bd6 {[%emt 0:03:50]} 16. h3 {
[%emt 0:01:20]} Bh2+ {[%emt 0:04:05]} 17. Kh1 {[%emt 0:00:52]} Bf4 {
[%emt 0:00:08]} 18. Qf3 {[%emt 0:01:42]} Bxe3 {[%emt 0:00:11]} 19. Qxe3 {
[%emt 0:00:11]} Qc5 {[%emt 0:12:16]} 20. Re1 {[%emt 0:03:23]} Rfe8 {
[%emt 0:05:31]} 21. Qe5 {[%emt 0:01:52]} Qxe5 {[%emt 0:00:28]} 1/2-1/2

[Event "OGD Prinsenstad-toernooi - A groep"]
[Site "Delft"]
[Date "2013.03.31"]
[Round "5.4"]
[White "Van den Doel, Erik"]
[Black "Ootes, Lars"]
[Result "1/2-1/2"]
[ECO "B07"]
[WhiteElo "2552"]
[BlackElo "2350"]
[PlyCount "167"]
[EventDate "2013.03.29"]
[EventType "swiss"]
[EventRounds "6"]
[EventCountry "NED"]
[Source "DSC"]
[SourceDate "2013.02.04"]
[TimeControl "6000+10"]

1. e4 d6 2. d4 Nf6 3. Nc3 g6 4. Be3 c6 5. h3 b5 6. Bd3 Bg7 7. Nf3 O-O 8. O-O
Bb7 9. e5 dxe5 10. dxe5 Nd5 11. Nxd5 Qxd5 12. Qe2 Nd7 13. Bf4 Nc5 14. Rfd1 Nxd3
15. Rxd3 Qc4 16. Bg5 Rfe8 17. Nd4 c5 18. Nb3 Rac8 19. Re1 Qe6 20. Rdd1 a6 21.
Qe3 Qf5 22. c3 c4 23. Nd4 Qxe5 24. Qxe5 Bxe5 25. Rxe5 f6 26. Re6 fxg5 27. Rb6
Rc7 28. Ne6 Rc6 29. Rxc6 Bxc6 30. Nxg5 a5 31. Rd4 h6 32. Ne6 Rc8 33. Kf1 Kf7
34. Rd8 Bb7 35. Rxc8 Bxc8 36. Nd8+ Kf6 37. Ke2 Bd7 38. Ke3 e5 39. f3 Ke7 40.
Nb7 Bc6 41. Nc5 Kd6 42. Ne4+ Ke6 43. Nf2 Kf5 44. h4 Bd5 45. Ng4 h5 46. Nf2 Bb7
47. g4+ Ke6 48. Ne4 Bc6 49. a3 Be8 50. Nc5+ Kd5 51. Ne4 Ke6 52. Ng5+ Kf6 53.
Ne4+ Ke6 54. Nd2 Kd5 55. Ne4 Ke6 56. Ng3 Kd5 57. gxh5 gxh5 58. f4 Ke6 59. f5+
Ke7 60. a4 bxa4 61. Ke4 Kf6 62. Kd5 Bf7+ 63. Kc5 Bg8 64. Kb5 e4 65. Nxe4+ Kxf5
66. Nd6+ Kg4 67. Nxc4 Kxh4 68. Ne3 Kg3 69. c4 Kf2 70. Nf5 Bh7 71. Nd6 h4 72. c5
h3 73. c6 h2 74. c7 h1=Q 75. c8=Q Qd5+ 76. Qc5+ Qxc5+ 77. Kxc5 Ke2 78. Kb5 Kd2
79. Kxa4 Kc2 80. Ka3 Bg8 81. Nb5 Kd3 82. Nd6 Bd5 83. Ka4 Kc2 84. Kxa5 1/2-1/2

[Event "OGD Prinsenstad-toernooi - A groep"]
[Site "Delft"]
[Date "2013.03.31"]
[Round "5.5"]
[White "Haslinger, Stewart"]
[Black "Von Meijenfeldt, Bart"]
[Result "1-0"]
[ECO "B90"]
[WhiteElo "2547"]
[BlackElo "2195"]
[PlyCount "77"]
[EventDate "2013.03.29"]
[EventType "swiss"]
[EventRounds "6"]
[EventCountry "NED"]
[Source "DSC"]
[SourceDate "2013.02.04"]
[TimeControl "6000+10"]

1. e4 c5 {[%emt 0:00:52]} 2. Nf3 {[%emt 0:00:00]} d6 {[%emt 0:00:03]} 3. d4 {
[%emt 0:00:27]} cxd4 {[%emt 0:00:28]} 4. Nxd4 {[%emt 0:00:04]} Nf6 {
[%emt 0:00:05]} 5. Nc3 {[%emt 0:00:05]} a6 {[%emt 0:00:02]} 6. Be3 {
[%emt 0:00:07]} e5 {[%emt 0:00:06]} 7. Nb3 {[%emt 0:00:06]} Be6 {[%emt 0:00:05]
} 8. h3 {[%emt 0:00:05]} Nbd7 {[%emt 0:10:05]} 9. g4 {[%emt 0:08:05]} Rc8 {
[%emt 0:04:13]} 10. Qd2 {[%emt 0:23:35]} b5 {[%emt 0:09:05]} 11. O-O-O {
[%emt 0:00:49]} Nb6 {[%emt 0:25:05]} 12. g5 {[%emt 0:05:48]} Nfd7 {
[%emt 0:00:41]} 13. Kb1 {[%emt 0:01:01]} Qc7 {[%emt 0:10:34]} 14. h4 {
[%emt 0:10:55]} Nc4 {[%emt 0:09:53]} 15. Bxc4 {[%emt 0:00:29]} bxc4 {
[%emt 0:00:04]} 16. Nc1 {[%emt 0:00:06]} Rb8 {[%emt 0:00:02]} 17. h5 {
[%emt 0:07:37]} f5 {[%emt 0:02:12]} 18. gxf6 {[%emt 0:03:50]} Nxf6 {
[%emt 0:00:33]} 19. h6 {[%emt 0:00:05]} g6 {[%emt 0:02:23]} 20. Bg5 {
[%emt 0:07:26]} Qb7 {[%emt 0:01:25]} 21. b3 {[%emt 0:00:06]} Nxe4 {
[%emt 0:00:08]} 22. Nxe4 {[%emt 0:00:06]} Qxe4 {[%emt 0:00:03]} 23. Rhe1 {
[%emt 0:00:30]} Qf5 {[%emt 0:00:04]} 24. Qe3 {[%emt 0:02:36]} cxb3 {
[%emt 0:11:16]} 25. axb3 {[%emt 0:00:15]} a5 {[%emt 0:00:02]} 26. f4 {
[%emt 0:04:53]} a4 {[%emt 0:00:12]} 27. Qa7 {[%emt 0:01:40]} Rxb3+ {
[%emt 0:00:14]} 28. Nxb3 {[%emt 0:00:12]} axb3 {[%emt 0:00:03]} 29. Rd2 {
[%emt 0:03:27]} Qh3 {[%emt 0:02:10]} 30. Rxe5 {[%emt 0:11:25]} bxc2+ {
[%emt 0:04:28]} 31. Kxc2 {[%emt 0:00:22]} Qb3+ {[%emt 0:02:27]} 32. Kc1 {
[%emt 0:00:04]} Qc3+ {[%emt 0:01:08]} 33. Rc2 {[%emt 0:00:36]} Qxc2+ {
[%emt 0:00:03]} 34. Kxc2 {[%emt 0:00:03]} dxe5 {[%emt 0:00:01]} 35. fxe5 {
[%emt 0:02:06]} Rg8 {[%emt 0:00:56]} 36. Qb8+ {[%emt 0:00:24]} Kd7 {
[%emt 0:00:21]} 37. Qb7+ {[%emt 0:00:25]} Ke8 {[%emt 0:00:01]} 38. Qc7 {
[%emt 0:00:58]} Bd7 {[%emt 0:01:01]} 39. Qd8+ {[%emt 0:00:05]} 1-0